bitfinex/quotes_BTCUSD_20250727
["timestamp","ask_amount","ask_price","bid_price","bid_amount"]
[1753626444685,0.78039065,118550.0,118540.0,0.4086744]
[1753626445012,0.77195561,118550.0,118540.0,0.23995499]
[1753626445305,0.79092561,118550.0,118540.0,0.4086744]
[1753626446488,0.79092561,118550.0,118540.0,0.2794744]
[1753626446709,0.79092561,118550.0,118540.0,0.4086744]
[1753626447133,0.78795561,118550.0,118540.0,0.4086744]
[1753626447766,0.7795205,118550.0,118540.0,0.4086744]
[1753626450606,0.7635205,118550.0,118540.0,0.4086744]
[1753626451034,0.39640998,118550.0,118540.0,0.4086744]
[1753626451254,0.77195561,118550.0,118540.0,0.4323244]
[1753626453290,0.77195561,118550.0,118540.0,0.4488244]
[1753626453717,0.40484509,118550.0,118540.0,0.4488244]
[1753626453930,0.77195561,118550.0,118540.0,0.4488244]
[1753626455624,0.37786509,118550.0,118540.0,0.82109492]
[1753626455851,0.22603006,118550.0,118540.0,0.84463089]
[1753626456069,0.22603006,118550.0,118540.0,0.47752037]
[1753626456543,0.39473524,118550.0,118540.0,0.4690844]
[1753626461720,0.39473524,118550.0,118540.0,0.4539844]
[1753626463098,0.39473524,118550.0,118540.0,0.4698844]
[1753626468192,0.39686524,118550.0,118540.0,0.4698844]
[1753626468349,0.39686524,118550.0,118540.0,0.4539844]
[1753626468554,0.38843034,118550.0,118540.0,0.4539844]
[1753626471301,0.38715034,118550.0,118540.0,0.4539844]
[1753626476033,0.37871523,118550.0,118540.0,0.4539844]
[1753626477368,0.37871523,118550.0,118540.0,0.44515573]
[1753626478976,0.37658523,118550.0,118540.0,0.46105573]
[1753626482452,0.38502027,118550.0,118540.0,0.46105573]
[1753626483984,0.38502027,118550.0,118540.0,0.46967783]
[1753626493868,0.37658523,118550.0,118540.0,0.30095842]
[1753626494222,0.37658523,118550.0,118540.0,0.46967783]
[1753626494812,0.36814998,118550.0,118540.0,0.46967783]
[1753626495024,0.36814998,118550.0,118540.0,0.30095842]
[1753626496954,0.7352605,118550.0,118540.0,0.30095842]
[1753626498534,0.7352605,118550.0,118540.0,0.28505842]
[1753626498766,0.7372205,118550.0,118540.0,0.28505842]
[1753626500657,0.7602205,118550.0,118540.0,0.27989842]
[1753626501543,0.39310998,118550.0,118540.0,0.81572835]
[1753626501752,0.37010998,118550.0,118540.0,0.82086835]
[1753626501955,0.37010998,118550.0,118540.0,0.45375783]
[1753626507459,0.37010998,118550.0,118540.0,0.43630881]
[1753626509566,0.37010998,118550.0,118540.0,0.45280881]
[1753626510401,0.7372205,118550.0,118540.0,0.45280881]
[1753626511156,0.37010998,118550.0,118540.0,0.45280881]
[1753626511582,0.37010998,118550.0,118540.0,0.40751881]
[1753626511583,0.39403998,118550.0,118540.0,0.40751881]
[1753626512008,0.7372205,118550.0,118540.0,0.43618881]
[1753626512624,0.7372205,118550.0,118540.0,0.45268881]
[1753626514544,0.37010998,118550.0,118540.0,0.45268881]
[1753626514960,0.7372205,118550.0,118540.0,0.45268881]
[1753626520158,0.37010998,118550.0,118540.0,0.45268881]
[1753626520366,0.37854509,118550.0,118540.0,0.45268881]
[1753626520577,0.74369561,118550.0,118540.0,0.45268881]
[1753626521405,0.74569561,118550.0,118540.0,0.45268881]
[1753626524277,0.7372605,118550.0,118540.0,0.43618881]
[1753626524906,0.37014998,118550.0,118540.0,0.43618881]
[1753626525145,0.7611905,118550.0,118540.0,0.43618881]
[1753626525586,0.7611905,118550.0,118540.0,0.43312881]
[1753626527026,0.39407998,118550.0,118540.0,0.43312881]
[1753626527255,0.7611905,118550.0,118540.0,0.43312881]
[1753626529194,0.7372605,118550.0,118540.0,0.43618881]
[1753626529802,0.7611905,118550.0,118540.0,0.43618881]
[1753626530241,0.7611905,118550.0,118540.0,0.43113881]
[1753626530447,0.7611905,118550.0,118540.0,0.27831881]
[1753626530652,0.7611905,118550.0,118540.0,0.39077881]
[1753626531788,0.39407998,118550.0,118540.0,0.39077881]
[1753626531998,0.7611905,118550.0,118540.0,0.43029881]
[1753626532432,0.7372605,118550.0,118540.0,0.43534881]
[1753626534847,0.37014998,118550.0,118540.0,0.43534881]
[1753626535255,0.7372605,118550.0,118540.0,0.43534881]
[1753626540956,0.7597805,118550.0,118540.0,0.43534881]
[1753626542361,0.7597805,118550.0,118540.0,0.42672671]
[1753626545338,0.7597805,118550.0,118540.0,0.2580073]
[1753626545563,0.39266998,118550.0,118540.0,0.2580073]
[1753626545773,0.7597805,118550.0,118540.0,0.2580073]
[1753626547043,0.7597805,118550.0,118540.0,0.43543753]
[1753626547461,0.7597805,118550.0,118540.0,0.26671812]
[1753626548885,0.7597805,118550.0,118540.0,0.43543753]
[1753626549354,0.7597805,118550.0,118540.0,0.26671812]
[1753626549707,0.8442578,118550.0,118540.0,0.22214812]
[1753626549911,0.8472378,118550.0,118540.0,0.22214812]
[1753626550122,0.7627605,118550.0,118540.0,0.22214812]
[1753626550346,0.7372605,118550.0,118540.0,0.22414812]
[1753626550578,0.7352605,118550.0,118540.0,0.28361812]
[1753626550866,0.7352605,118550.0,118540.0,0.45233753]
[1753626551661,0.7374205,118550.0,118540.0,0.28361812]
[1753626552175,0.7374205,118550.0,118540.0,0.45233753]
[1753626553013,0.37030998,118550.0,118540.0,0.45233753]
[1753626553299,0.7374205,118550.0,118540.0,0.45233753]
[1753626559366,0.7352605,118550.0,118540.0,0.45233753]
[1753626559868,0.37658523,118550.0,118540.0,0.45233753]
[1753626560089,0.39345496,118550.0,118540.0,0.45233753]
[1753626560308,0.76056548,118550.0,118540.0,0.46077342]
[1753626560520,0.76056548,118550.0,118540.0,0.45233753]
[1753626560709,0.76056548,118550.0,118540.0,0.46077342]
[1753626560946,0.76056548,118550.0,118540.0,0.46920924]
[1753626561139,0.76056548,118550.0,118540.0,0.46077342]
[1753626561719,0.75213065,118550.0,118540.0,0.4607735]
[1753626561930,0.75213065,118550.0,118540.0,0.46920939]
[1753626562261,0.75213065,118550.0,118540.0,0.4607735]
[1753626562642,0.75213065,118550.0,118540.0,0.45233753]
[1753626562861,0.75213065,118550.0,118540.0,0.4607735]
[1753626563945,0.74369568,118550.0,118540.0,0.45233753]
[1753626565231,0.37658516,118550.0,118540.0,0.45233753]
[1753626565430,0.74369568,118550.0,118540.0,0.45233753]
[1753626565883,0.7352605,118550.0,118540.0,0.45233753]
[1753626566533,0.36814998,118550.0,118540.0,0.4607735]
[1753626566731,0.7352605,118550.0,118540.0,0.4607735]
[1753626567274,0.7352605,118550.0,118540.0,0.45233753]
[1753626567486,0.7352605,118550.0,118540.0,0.4607735]
[1753626567696,0.36814998,118550.0,118540.0,0.45233753]
[1753626567907,0.7352605,118550.0,118540.0,0.45233753]
[1753626570494,0.7352605,118550.0,118540.0,0.4607735]
[1753626570703,0.7352605,118550.0,118540.0,0.46920939]
[1753626571058,0.7352605,118550.0,118540.0,0.4607735]
[1753626571466,0.36814998,118550.0,118540.0,0.4607735]
[1753626571671,0.7352605,118550.0,118540.0,0.47764521]
[1753626571870,0.7352605,118550.0,118540.0,0.46920939]
[1753626572272,0.7352605,118550.0,118540.0,0.4607735]
[1753626572473,0.36814998,118550.0,118540.0,0.46920939]
[1753626572683,0.7352605,118550.0,118540.0,0.46920939]
[1753626572985,0.7352605,118550.0,118540.0,0.4607735]
[1753626573608,0.7352605,118550.0,118540.0,0.46920939]
[1753626573834,0.7352605,118550.0,118540.0,0.4607735]
[1753626575585,0.7352605,118550.0,118540.0,0.46920939]
[1753626575991,0.7352605,118550.0,118540.0,0.4607735]
[1753626576244,0.7352605,118550.0,118540.0,0.45233753]
[1753626576639,0.7373205,118550.0,118540.0,0.28361812]
[1753626576855,0.7373205,118550.0,118540.0,0.45233753]
[1753626577268,0.7373205,118550.0,118540.0,0.28361812]
[1753626577469,0.7617705,118550.0,118540.0,0.28361812]
[1753626577877,0.39465998,118550.0,118540.0,0.28361812]
[1753626578085,0.7617705,118550.0,118540.0,0.26292812]
[1753626578875,0.7617705,118550.0,118540.0,0.26280812]
[1753626579601,0.7617705,118550.0,118540.0,0.43152753]
[1753626581059,0.7617705,118550.0,118540.0,0.26280812]
[1753626581921,0.39465998,118550.0,118540.0,0.26280812]
[1753626582131,0.7617705,118550.0,118540.0,0.43152753]
[1753626582690,0.7373205,118550.0,118540.0,0.44977753]
[1753626582911,0.7373205,118550.0,118540.0,0.45290753]
[1753626585789,0.7373205,118550.0,118540.0,0.28418812]
[1753626586142,0.7617705,118550.0,118540.0,0.28418812]
[1753626586852,0.7617705,118550.0,118540.0,0.45290753]
[1753626587647,0.7617705,118550.0,118540.0,0.28418812]
[1753626587877,0.37020998,118550.0,118540.0,0.45290753]
[1753626588099,0.38502027,118550.0,118540.0,0.45290753]
[1753626588266,0.75213079,118550.0,118540.0,0.45290753]
[1753626588666,0.38502027,118550.0,118540.0,0.45290753]
[1753626588906,0.75213079,118550.0,118540.0,0.45290753]
[1753626589103,0.59186044,118550.0,118540.0,0.46977939]
[1753626589488,0.59186037,118550.0,118540.0,0.4613435]
[1753626589688,0.76056555,118550.0,118540.0,0.4613435]
[1753626590080,0.76056555,118550.0,118540.0,0.45290753]
[1753626592434,0.76056555,118550.0,118540.0,0.4613435]
[1753626592813,0.76056555,118550.0,118540.0,0.45290753]
[1753626594041,0.75419072,118550.0,118540.0,0.45290753]
[1753626594568,0.3870802,118550.0,118540.0,0.45290753]
[1753626594782,0.75419072,118550.0,118540.0,0.45290753]
[1753626602344,0.74575568,118550.0,118540.0,0.45290753]
[1753626602553,0.73931568,118550.0,118540.0,0.45290753]
[1753626604056,0.21830971,118550.0,118540.0,0.46134342]
[1753626604222,0.21830971,118550.0,118540.0,0.4613435]
[1753626604223,0.22674496,118550.0,118540.0,0.4613435]
[1753626604445,0.39545014,118550.0,118540.0,0.45290753]
[1753626604973,0.76256066,118550.0,118540.0,0.4613435]
[1753626606047,0.76256066,118550.0,118540.0,0.45290753]
[1753626606728,0.76256066,118550.0,118540.0,0.4613435]
[1753626606948,0.20546637,118550.0,118540.0,0.47821493]
[1753626607161,0.22233609,118550.0,118540.0,0.46977932]
[1753626607374,0.21390098,118550.0,118540.0,0.46950425]
[1753626607587,0.5810115,118550.0,118540.0,0.46950425]
[1753626607976,0.5810115,118550.0,118540.0,0.4610685]
[1753626608395,0.5810115,118550.0,118540.0,0.46950425]
[1753626608553,0.5810115,118550.0,118540.0,0.4610685]
[1753626608751,0.5810115,118550.0,118540.0,0.45263268]
[1753626608955,0.5810115,118550.0,118540.0,0.46106857]
[1753626609240,0.5810115,118550.0,118540.0,0.46950439]
[1753626609449,0.5810115,118550.0,118540.0,0.47794014]
[1753626609666,0.5810115,118550.0,118540.0,7.66940439]
[1753626609812,0.5810115,118550.0,118540.0,7.66096857]
[1753626610033,0.58944668,118550.0,118540.0,7.66096857]
[1753626610828,0.58944661,118550.0,118540.0,7.66940439]
[1753626611032,0.58944661,118550.0,118540.0,7.66096857]
[1753626611234,0.75815179,118550.0,118540.0,7.64409671]
[1753626611442,0.76027179,118550.0,118540.0,7.64409671]
[1753626611719,0.76870761,118550.0,118540.0,7.64409671]
[1753626611924,0.76027278,118550.0,118540.0,7.64409671]
[1753626612747,0.76027278,118550.0,118540.0,7.65253268]
[1753626612948,0.76027278,118550.0,118540.0,7.64409671]
[1753626613632,0.76027278,118550.0,118540.0,7.65253268]
[1753626613860,0.5915676,118550.0,118540.0,7.65253268]
[1753626614042,0.5915676,118550.0,118540.0,7.64409671]
[1753626614245,0.5915676,118550.0,118540.0,7.66096857]
[1753626614393,0.5915676,118550.0,118540.0,7.65253268]
[1753626614602,0.76027278,118550.0,118540.0,7.64096671]
[1753626614811,0.78389278,118550.0,118540.0,7.64096671]
[1753626615020,0.78389278,118550.0,118540.0,7.64964148]
[1753626615220,0.76027278,118550.0,118540.0,7.64964148]
[1753626615514,0.76027278,118550.0,118540.0,7.65288148]
[1753626615725,0.76027278,118550.0,118540.0,7.66131745]
[1753626616279,0.76027278,118550.0,118540.0,7.65288148]
[1753626617098,0.76027278,118550.0,118540.0,7.66131745]
[1753626617684,0.76027278,118550.0,118540.0,7.65288148]
[1753626618809,0.39316226,118550.0,118540.0,7.65288148]
[1753626619007,0.76027278,118550.0,118540.0,7.65288148]
[1753626621308,0.75183774,118550.0,118540.0,7.65288148]
[1753626624654,0.38472722,118550.0,118540.0,7.65288148]
[1753626624843,0.75183774,118550.0,118540.0,7.65288148]
[1753626626594,0.74971774,118550.0,118540.0,7.65288148]
[1753626630150,0.74128263,118550.0,118540.0,7.65288148]
[1753626633655,0.57257639,118550.0,118540.0,7.66975263]
[1753626633885,0.5894464,118550.0,118540.0,7.66975319]
[1753626634126,0.75815158,118550.0,118540.0,7.65288148]
[1753626634399,0.58101179,118550.0,118540.0,7.66975319]
[1753626634635,0.58101179,118550.0,118540.0,7.66131737]
[1753626634855,0.58101179,118550.0,118540.0,7.66975334]
[1753626635059,0.58944704,118550.0,118540.0,7.65288148]
[1753626635278,0.75815222,118550.0,118540.0,7.65288148]
[1753626638132,0.75815222,118550.0,118540.0,7.66131745]
[1753626638547,0.3910417,118550.0,118540.0,7.66131745]
[1753626638773,0.21390127,118550.0,118540.0,7.66131745]
[1753626638977,0.58944704,118550.0,118540.0,7.66131745]
[1753626639448,0.58944704,118550.0,118540.0,7.66975334]
[1753626639662,0.58944704,118550.0,118540.0,7.66131745]
[1753626640098,0.58944704,118550.0,118540.0,7.65288148]
[1753626640548,0.22233652,118550.0,118540.0,7.65288148]
[1753626640741,0.58944704,118550.0,118540.0,7.66131745]
[1753626640953,0.58101179,118550.0,118540.0,7.66975334]
[1753626641186,0.58944704,118550.0,118540.0,7.66131745]
[1753626641352,0.58944704,118550.0,118540.0,7.66975334]
[1753626642143,0.58101179,118550.0,118540.0,7.66131745]
[1753626642351,0.58944697,118550.0,118540.0,7.66975334]
[1753626642563,0.58944697,118550.0,118540.0,7.66131745]
[1753626642778,0.59788222,118550.0,118540.0,7.66131745]
[1753626642990,0.75815264,118550.0,118540.0,7.65288148]
[1753626643200,0.75815264,118550.0,118540.0,7.66131745]
[1753626643411,0.58101221,118550.0,118540.0,7.66131745]
[1753626643593,0.58101221,118550.0,118540.0,7.66975334]
[1753626643840,0.58101221,118550.0,118540.0,7.66131745]
[1753626644404,0.74971739,118550.0,118540.0,7.65288148]
[1753626647634,0.74971739,118550.0,118540.0,7.66131745]
[1753626647845,0.74971739,118550.0,118540.0,7.65288148]
[1753626650913,0.38260687,118550.0,118540.0,7.66131745]
[1753626651112,0.74971739,118550.0,118540.0,7.65288148]
[1753626652337,0.38260687,118550.0,118540.0,7.65288148]
[1753626652560,0.74971739,118550.0,118540.0,7.65288148]
[1753626654344,0.1885965,118550.0,118540.0,8.06274806]
[1753626655702,0.1885965,118550.0,118540.0,7.69563754]
[1753626655951,0.1885965,118550.0,118540.0,8.06274806]
[1753626657059,0.19703119,118550.0,118540.0,7.69563754]
[1753626657268,0.1885965,118550.0,118540.0,8.06274806]
[1753626658051,0.1826875,118550.0,118540.0,8.06274806]
[1753626658259,0.19112219,118550.0,118540.0,8.06274806]
[1753626658485,0.1826875,118550.0,118540.0,8.06274806]
[1753626659669,0.1826875,118550.0,118540.0,7.69563754]
[1753626659992,0.1826875,118550.0,118540.0,8.06274806]
[1753626663710,0.19112211,118550.0,118540.0,7.69563754]
[1753626663912,0.19112211,118550.0,118540.0,8.06274806]
[1753626664123,0.1826875,118550.0,118540.0,8.06274806]
[1753626668806,0.1826875,118550.0,118540.0,7.69563754]
[1753626669012,0.1826875,118550.0,118540.0,8.06274806]
[1753626672523,0.1826875,118550.0,118540.0,8.05407329]
[1753626675191,0.1826875,118550.0,118540.0,8.06260639]
[1753626678987,0.1826875,118550.0,118540.0,8.08776638]
[1753626680575,0.1826875,118550.0,118540.0,7.72065586]
[1753626680796,0.1826875,118550.0,118540.0,8.08776638]
[1753626684400,0.18156981,118550.0,118540.0,8.08776638]
[1753626685069,0.18156981,118550.0,118540.0,7.72065586]
[1753626685267,0.18156981,118550.0,118540.0,8.08776638]
[1753626686032,0.18156981,118550.0,118540.0,7.95892638]
[1753626686237,0.18156981,118550.0,118540.0,8.08748638]
[1753626686648,0.18156981,118550.0,118540.0,7.72037586]
[1753626687063,0.18156981,118550.0,118540.0,8.08748638]
[1753626688375,0.18156981,118550.0,118540.0,7.95892638]
[1753626688601,0.18156981,118550.0,118540.0,8.08748638]
[1753626691383,0.18156981,118550.0,118540.0,7.95892638]
[1753626691603,0.18156981,118550.0,118540.0,8.08748638]
[1753626692961,0.18156981,118550.0,118540.0,7.95892638]
[1753626693156,0.18156981,118550.0,118540.0,8.08748638]
[1753626694638,0.18156981,118550.0,118540.0,7.95892638]
[1753626694888,0.18156981,118550.0,118540.0,8.08748638]
[1753626696483,0.18156981,118550.0,118540.0,8.08744638]
[1753626698171,0.18156981,118550.0,118540.0,7.95892638]
[1753626698380,0.18156981,118550.0,118540.0,8.08744638]
[1753626704877,0.18156981,118550.0,118540.0,7.72033586]
[1753626705088,0.18156981,118550.0,118540.0,8.08744638]
[1753626717946,0.18156981,118550.0,118540.0,7.72033586]
[1753626718142,0.18156981,118550.0,118540.0,8.08744638]
[1753626726825,0.18156981,118550.0,118540.0,7.95892638]
[1753626727038,0.18156981,118550.0,118540.0,8.08740638]
[1753626728109,0.18156981,118550.0,118540.0,8.42740638]
[1753626728326,0.18156981,118550.0,118540.0,10.53403038]
[1753626729934,0.18156981,118550.0,118540.0,10.53503038]
[1753626730973,0.18156981,118550.0,118540.0,10.53603038]
[1753626732560,0.18156981,118550.0,118540.0,8.42940638]
[1753626733857,0.18368981,118550.0,118540.0,7.70295586]
[1753626734077,0.20777981,118550.0,118540.0,8.07006638]
[1753626734286,0.18368981,118550.0,118540.0,8.07298638]
[1753626734414,0.18368981,118550.0,118540.0,8.08848638]
[1753626735250,0.18156981,118550.0,118540.0,8.08848638]
[1753626737362,0.18156981,118550.0,118540.0,8.05479329]
[1753626739789,0.1921245,118550.0,118540.0,7.61157155]
[1753626740049,0.2344645,118550.0,118540.0,7.99340336]
[1753626740263,0.23984933,118550.0,118540.0,7.61785723]
[1753626740516,0.2482843,118550.0,118540.0,7.98496775]
[1753626740742,0.24828437,118550.0,118540.0,7.62629298]
[1753626741019,0.2482843,118550.0,118540.0,7.62629298]
[1753626741250,0.2330843,118550.0,118540.0,7.60942162]
[1753626741487,0.2330843,118550.0,118540.0,7.6178573]
[1753626741920,0.22464933,118550.0,118540.0,7.63486516]
[1753626742454,0.2162145,118550.0,118540.0,7.64330063]
[1753626742701,0.22464926,118550.0,118540.0,7.66582063]
[1753626742928,0.22464926,118550.0,118540.0,7.6658207]
[1753626743158,0.22464926,118550.0,118540.0,8.05768311]
[1753626743389,0.23308416,118550.0,118540.0,7.68213705]
[1753626743629,0.23308416,118550.0,118540.0,8.04924757]
[1753626743873,0.22464926,118550.0,118540.0,7.69057259]
[1753626744109,0.23308416,118550.0,118540.0,7.69057259]
[1753626744351,0.22464926,118550.0,118540.0,7.69900806]
[1753626744836,0.22464926,118550.0,118540.0,7.69057259]
[1753626745242,0.23308416,118550.0,118540.0,7.69057259]
[1753626745443,0.22464926,118550.0,118540.0,7.69900806]
[1753626745672,0.20055926,118550.0,118540.0,7.71984806]
[1753626745908,0.20055926,118550.0,118540.0,7.71141259]
[1753626746126,0.20055926,118550.0,118540.0,7.71984806]
[1753626746689,0.1921245,118550.0,118540.0,7.71984806]
[1753626748850,0.18368981,118550.0,118540.0,8.08695858]
[1753626749074,0.19000442,118550.0,118540.0,8.10195858]
[1753626749509,0.18156981,118550.0,118540.0,8.10195858]
[1753626750388,0.18156981,118550.0,118540.0,7.73484806]
[1753626750669,0.18156981,118550.0,118540.0,8.10195858]
[1753626750904,0.19000442,118550.0,118540.0,8.10195858]
[1753626751409,0.18156981,118550.0,118540.0,8.10195858]
[1753626752070,0.19000442,118550.0,118540.0,8.10195858]
[1753626752532,0.18156981,118550.0,118540.0,8.10195858]
[1753626753953,0.18156981,118550.0,118540.0,8.94499858]
[1753626754168,0.18156981,118550.0,118540.0,8.88563258]
[1753626754836,0.18156981,118550.0,118540.0,8.87121458]
[1753626755050,0.18156981,118550.0,118540.0,8.83856458]
[1753626755715,0.18156981,118550.0,118540.0,8.74034458]
[1753626756154,0.18156981,118550.0,118540.0,8.74284458]
[1753626757928,0.18156981,118550.0,118540.0,9.27816558]
[1753626759150,0.18156981,118550.0,118540.0,9.22380758]
[1753626759345,0.18156981,118550.0,118540.0,9.12508758]
[1753626760189,0.18156981,118550.0,118540.0,8.69742706]
[1753626760407,0.18156981,118550.0,118540.0,9.11515758]
[1753626763633,0.18156981,118550.0,118540.0,9.04652658]
[1753626764081,0.18156981,118550.0,118540.0,8.88859158]
[1753626764308,0.18156981,118550.0,118540.0,8.85043158]
[1753626765448,0.18156981,118550.0,118540.0,8.79981158]
[1753626765965,0.18156981,118550.0,118540.0,8.44445858]
[1753626766369,0.18156981,118550.0,118540.0,8.44461858]
[1753626767536,0.18156981,118550.0,118540.0,8.60797058]
[1753626767752,0.18156981,118550.0,118540.0,8.58347058]
[1753626768607,0.18156981,118550.0,118540.0,8.44461858]
[1753626769152,0.18156981,118550.0,118540.0,8.57067258]
[1753626770762,0.18156981,118550.0,118540.0,8.20356206]
[1753626770964,0.18156981,118550.0,118540.0,8.57067258]
[1753626771819,0.18156981,118550.0,118540.0,8.44461858]
[1753626775438,0.18156981,118550.0,118540.0,8.60480858]
[1753626778454,0.18156981,118550.0,118540.0,8.61478658]
[1753626778657,0.18156981,118550.0,118540.0,8.62898658]
[1753626778991,0.18156981,118550.0,118540.0,8.49523858]
[1753626779643,0.18156981,118550.0,118540.0,8.60336958]
[1753626780044,0.18156981,118550.0,118540.0,8.60324958]
[1753626781632,0.18156981,118550.0,118540.0,8.47476958]
[1753626781785,0.18156981,118550.0,118540.0,8.60320958]
[1753626783588,0.18156981,118550.0,118540.0,8.23609906]
[1753626783800,0.18156981,118550.0,118540.0,8.60320958]
[1753626785058,0.18156981,118550.0,118540.0,8.47476958]
[1753626785266,0.18156981,118550.0,118540.0,8.60320958]
[1753626790167,0.18156981,118550.0,118540.0,8.47476958]
[1753626790404,0.18372981,118550.0,118540.0,8.46741858]
[1753626790630,0.18372981,118550.0,118540.0,8.45241858]
[1753626790874,0.20861981,118550.0,118540.0,8.45241858]
[1753626791095,0.20861981,118550.0,118540.0,8.47517858]
[1753626791309,0.18372981,118550.0,118540.0,8.48017858]
[1753626791972,0.18372981,118550.0,118540.0,8.36743858]
[1753626792185,0.18156981,118550.0,118540.0,8.49587858]
[1753626797453,0.18156981,118550.0,118540.0,8.48017858]
[1753626798192,0.18156981,118550.0,118540.0,8.49647858]
[1753626799045,0.18156981,118550.0,118540.0,8.48017858]
[1753626802334,0.18156981,118550.0,118540.0,8.44685444]
[1753626802541,0.18372981,118550.0,118540.0,8.43115444]
[1753626803168,0.18156981,118550.0,118540.0,8.44615444]
[1753626804087,0.18156981,118550.0,118540.0,8.46245444]
[1753626805778,0.18156981,118550.0,118540.0,8.4874519]
[1753626806679,0.18156981,118550.0,118540.0,8.49606286]
[1753626813027,0.18156981,118550.0,118540.0,10.30496586]
[1753626813261,0.18156981,118550.0,118540.0,8.83930286]
[1753626813927,0.18156981,118550.0,118540.0,8.73078186]
[1753626814881,0.18156981,118550.0,118540.0,8.49606286]
[1753626821187,0.18156981,118550.0,118540.0,8.65104886]
[1753626822994,0.18156981,118550.0,118540.0,8.49606286]
[1753626826825,0.18156981,118550.0,118540.0,8.47976286]
[1753626828833,0.18156981,118550.0,118540.0,8.35132286]
[1753626829062,0.18156981,118550.0,118540.0,8.47976286]
[1753626829670,0.18363981,118550.0,118540.0,8.47976286]
[1753626830102,0.18363981,118550.0,118540.0,8.11265234]
[1753626830317,0.18363981,118550.0,118540.0,8.47976286]
[1753626831370,0.18156981,118550.0,118540.0,8.35132286]
[1753626832029,0.18156981,118550.0,118540.0,8.47976286]
[1753626832596,0.18363981,118550.0,118540.0,8.47976286]
[1753626833005,0.18363981,118550.0,118540.0,8.11265234]
[1753626833265,0.18363981,118550.0,118540.0,8.47976286]
[1753626834187,0.22309981,118550.0,118540.0,8.38638286]
[1753626834819,0.22309981,118550.0,118540.0,8.40947286]
[1753626835698,0.20739981,118550.0,118540.0,8.40947286]
[1753626835907,0.18363981,118550.0,118540.0,8.41159286]
[1753626836115,0.18363981,118550.0,118540.0,8.41460286]
[1753626838940,0.18363981,118550.0,118540.0,8.41210286]
[1753626840751,0.18363981,118550.0,118540.0,8.42860286]
[1753626847141,0.18363981,118550.0,118540.0,8.41210286]
[1753626848256,0.22452981,118550.0,118540.0,8.01673234]
[1753626848476,0.22452981,118550.0,118540.0,8.38384286]
[1753626848921,0.22452981,118550.0,118540.0,8.40693286]
[1753626850229,0.19973981,118550.0,118540.0,8.41206286]
[1753626850715,0.18363981,118550.0,118540.0,8.41206286]
[1753626852952,0.18156981,118550.0,118540.0,8.42716286]
[1753626856065,0.18156981,118550.0,118540.0,8.06005234]
[1753626856332,0.18156981,118550.0,118540.0,8.42716286]
[1753626857848,0.18352981,118550.0,118540.0,8.28366286]
[1753626858068,0.18352981,118550.0,118540.0,8.41206286]
[1753626861644,0.18156981,118550.0,118540.0,8.41206286]
[1753626862045,0.18156981,118550.0,118540.0,8.42806286]
[1753626862874,0.18156981,118550.0,118540.0,8.06095234]
[1753626867380,0.18156981,118550.0,118540.0,8.02734392]
[1753626870428,0.18156981,118550.0,118540.0,8.03596372]
[1753626873085,0.18156981,118550.0,118540.0,8.40307424]
[1753626873732,0.18156981,118550.0,118540.0,8.03596372]
[1753626874406,0.18156981,118550.0,118540.0,8.06165319]
[1753626879087,0.18156981,118550.0,118540.0,8.42876371]
[1753626883362,0.18156981,118550.0,118540.0,8.06165319]
[1753626883580,0.18156981,118550.0,118540.0,8.42876371]
[1753626888444,0.18156981,118550.0,118540.0,8.06165319]
[1753626888663,0.18156981,118550.0,118540.0,8.42876371]
[1753626890652,0.18156981,118550.0,118540.0,8.44426371]
[1753626891900,0.18156981,118550.0,118540.0,8.07715319]
[1753626892103,0.18156981,118550.0,118540.0,8.42876371]
[1753626893025,0.18156981,118550.0,118540.0,8.06165319]
[1753626893477,0.18156981,118550.0,118540.0,8.42876371]
[1753626898020,0.18352981,118550.0,118540.0,8.42876371]
[1753626898439,0.18156981,118550.0,118540.0,8.42876371]
[1753626899705,0.18156981,118550.0,118540.0,8.44416371]
[1753626900528,0.18156981,118550.0,118540.0,8.07705319]
[1753626900880,0.18156981,118550.0,118540.0,8.42876371]
[1753626903054,0.18156981,118550.0,118540.0,8.06165319]
[1753626903317,0.18156981,118550.0,118540.0,8.42876371]
[1753626903734,0.18352981,118550.0,118540.0,7.91424319]
[1753626903984,0.18352981,118550.0,118540.0,8.04562319]
[1753626904602,0.18352981,118550.0,118540.0,7.70562319]
[1753626907176,0.18156981,118550.0,118540.0,7.72152319]
[1753626909429,0.18156981,118550.0,118540.0,8.08863371]
[1753626909869,0.18156981,118550.0,118540.0,7.72152319]
[1753626910118,0.18156981,118550.0,118540.0,8.08863371]
[1753626911185,0.18156981,118550.0,118540.0,7.72152319]
[1753626911398,0.18156981,118550.0,118540.0,8.08863371]
[1753626912704,0.18156981,118550.0,118540.0,7.72152319]
[1753626912903,0.18156981,118550.0,118540.0,8.08863371]
[1753626916563,0.18156981,118550.0,118540.0,7.72152319]
[1753626916761,0.18156981,118550.0,118540.0,8.08863371]
[1753626916962,0.19843925,118550.0,118540.0,7.68739825]
[1753626917120,0.58323494,118550.0,118540.0,7.65792257]
[1753626917330,0.22455918,118550.0,118540.0,7.65792257]
[1753626918242,0.21612442,118550.0,118540.0,7.65792257]
[1753626918469,0.22455911,118550.0,118540.0,7.65792257]
[1753626918850,0.24332911,118550.0,118540.0,7.63483257]
[1753626919059,0.24015911,118550.0,118540.0,7.63483257]
[1753626919459,0.24859394,118550.0,118540.0,7.63483257]
[1753626919747,0.20039911,118550.0,118540.0,7.66120257]
[1753626919979,0.20039911,118550.0,118540.0,7.66422257]
[1753626921144,0.20883387,118550.0,118540.0,7.66422257]
[1753626921369,0.59154446,118550.0,118540.0,7.66120264]
[1753626921619,0.21599911,118550.0,118540.0,7.67265811]
[1753626922350,0.19196442,118550.0,118540.0,7.67265811]
[1753626922646,0.20039918,118550.0,118540.0,7.67265811]
[1753626923289,0.19196442,118550.0,118540.0,7.67265811]
[1753626923517,0.19196442,118550.0,118540.0,7.68845811]
[1753626924013,0.20039918,118550.0,118540.0,7.67265811]
[1753626926274,0.20039918,118550.0,118540.0,7.66422264]
[1753626926526,0.20883401,118550.0,118540.0,7.66422264]
[1753626927934,0.20883401,118550.0,118540.0,7.68002264]
[1753626928148,0.20883401,118550.0,118540.0,7.68845811]
[1753626928376,0.20883401,118550.0,118540.0,7.6715871]
[1753626928618,0.20883401,118550.0,118540.0,7.68845825]
[1753626929272,0.20039918,118550.0,118540.0,7.68845825]
[1753626929488,0.20039918,118550.0,118540.0,7.69689372]
[1753626929683,0.19843918,118550.0,118540.0,7.69689372]
[1753626931877,0.19843918,118550.0,118540.0,7.6557871]
[1753626932075,0.20687408,118550.0,118540.0,7.66422271]
[1753626932302,0.20687401,118550.0,118540.0,7.66403845]
[1753626932757,0.19843918,118550.0,118540.0,7.66403845]
[1753626933567,0.20687408,118550.0,118540.0,7.66403845]
[1753626933726,0.20687401,118550.0,118540.0,7.66403845]
[1753626934130,0.20687408,118550.0,118540.0,7.66403845]
[1753626934334,0.19843918,118550.0,118540.0,7.66403845]
[1753626935121,0.20687408,118550.0,118540.0,7.66403845]
[1753626935584,0.20687408,118550.0,118540.0,7.65560291]
[1753626936006,0.20687408,118550.0,118540.0,7.66409486]
[1753626936215,0.5739846,118550.0,118540.0,7.64722357]
[1753626936428,0.20687408,118550.0,118540.0,7.664095]